[Event "CCT Chessable Masters Play-In 2025"]
[Site "Online"]
[Date "2025.02.17"]
[Round "5.6"]
[White "Tabatabaei, M. Amin"]
[Black "Sindarov, Javokhir"]
[Result "1-0"]
[ECO "E60"]
[WhiteElo "2666"]
[BlackElo "2700"]
[PlyCount "171"]
[EventDate "2025.02.13"]
[EventType "swiss"]
[EventCountry "NET"]
[TimeControl "600"]
[WhiteClock "0:00:02"]

1. d4 {[%emt 0:00:03]} Nf6 {[%emt 0:00:01]} 2. c4 {[%emt 0:00:05]} g6 {[%emt 0:00:09]} 3. g3 {[%emt 0:00:07]} c5 {[%emt 0:00:01]} 4. dxc5 {[%emt 0:00:07]} Na6 {[%emt 0:00:06]} 5. Bg2 {[%emt 0:00:02]} Nxc5 {[%emt 0:00:06]} 6. Nc3 {[%emt 0:00:01]} Bg7 {[%emt 0:00:00]} 7. Nh3 {[%emt 0:00:11]} O-O {[%emt 0:00:21]} 8. O-O {[%emt 0:00:01]} d6 {[%emt 0:00:01]} 9. Nf4 {[%emt 0:00:02]} Bf5 {[%emt 0:00:01]} 10. Be3 {[%emt 0:00:28]} Nce4 {[%emt 0:00:19]} 11. Nxe4 {[%emt 0:00:30]} Bxe4 {[%emt 0:00:02]} 12. Bxe4 {[%emt 0:00:25]} Nxe4 {[%emt 0:00:00]} 13. Qc2 {[%emt 0:00:02]} Nf6 {[%emt 0:00:09]} 14. Rad1 {[%emt 0:00:03]} Qc8 {[%emt 0:00:10]} 15. Qb3 {[%emt 0:00:23]} Qc6 {[%emt 0:00:19]} 16. Rc1 {[%emt 0:00:55]} Rfc8 {[%emt 0:00:11]} 17. Rfd1 {[%emt 0:00:04]} b6 {[%emt 0:00:52]} 18. a4 {[%emt 0:00:03]} Qe4 {[%emt 0:00:08]} 19. f3 {[%emt 0:00:15]} Qf5 {[%emt 0:00:22]} 20. Qb5 {[%emt 0:00:14]} Nd7 {[%emt 0:00:54]} 21. Nd5 {[%emt 0:01:39]} Kf8 {[%emt 0:00:05]} 22. Bf2 {[%emt 0:00:17]} Nc5 {[%emt 0:00:02]} 23. b4 {[%emt 0:00:39]} Nb3 {[%emt 0:00:24]} 24. g4 {[%emt 0:00:24]} Qe6 {[%emt 0:00:00]} 25. Rc2 {[%emt 0:00:01]} h5 {[%emt 0:01:44]} 26. h3 {[%emt 0:00:01]} Na1 {[%emt 0:00:22]} 27. Ra2 {[%emt 0:00:05]} Nb3 {[%emt 0:00:01]} 28. a5 {[%emt 0:00:12]} hxg4 {[%emt 0:00:46]} 29. hxg4 {[%emt 0:00:02]} bxa5 {[%emt 0:00:11]} 30. Qa4 {[%emt 0:00:01]} Nd4 {[%emt 0:00:03]} 31. Bxd4 {[%emt 0:00:07]} Bxd4+ {[%emt 0:00:01]} 32. Rxd4 {[%emt 0:00:01]} Qe5 {[%emt 0:00:00]} 33. Re4 {[%emt 0:00:23]} Qg3+ {[%emt 0:00:03]} 34. Kf1 {[%emt 0:00:01]} e6 {[%emt 0:00:03]} 35. Nf4 {[%emt 0:00:59]} d5 {[%emt 0:00:05]} 36. Nxe6+ {[%emt 0:00:15]} fxe6 {[%emt 0:00:24]} 37. Rd4 {[%emt 0:00:01]} Ke7 {[%emt 0:00:10]} 38. Qxa5 {[%emt 0:00:10]} Rh8 {[%emt 0:00:03]} 39. Qc5+ {[%emt 0:00:00]} Kf7 {[%emt 0:00:02]} 40. Rxa7+ {[%emt 0:00:02]} Rxa7 {[%emt 0:00:06]} 41. Qxa7+ {[%emt 0:00:01]} Kf6 {[%emt 0:00:01]} 42. g5+ {[%emt 0:00:00]} Qxg5 {[%emt 0:00:16]} 43. Rg4 {[%emt 0:00:04]} Qc1+ {[%emt 0:00:00]} 44. Kf2 {[%emt 0:00:03]} Rh2+ {[%emt 0:00:25]} 45. Rg2 {[%emt 0:00:00]} Rxg2+ {[%emt 0:00:01]} 46. Kxg2 {[%emt 0:00:00]} Qxc4 {[%emt 0:00:01]} 47. Qa1+ {[%emt 0:00:01]} e5 {[%emt 0:00:04]} 48. Qb2 {[%emt 0:00:00]} Qb5 {[%emt 0:00:00]} 49. Kf1 {[%emt 0:00:02]} d4 {[%emt 0:00:02]} 50. Qa3 {[%emt 0:00:00]} Qc4 {[%emt 0:00:03]} 51. Qb2 {[%emt 0:00:01]} Qb5 {[%emt 0:00:00]} 52. Qb3 {[%emt 0:00:01]} g5 {[%emt 0:00:01]} 53. Kf2 {[%emt 0:00:01]} Qb6 {[%emt 0:00:02]} 54. b5 {[%emt 0:00:03]} d3+ {[%emt 0:00:01]} 55. e3 {[%emt 0:00:00]} Qd6 {[%emt 0:00:04]} 56. Ke1 {[%emt 0:00:01]} e4 {[%emt 0:00:00]} 57. fxe4 {[%emt 0:00:03]} d2+ {[%emt 0:00:01]} 58. Kd1 {[%emt 0:00:01]} g4 {[%emt 0:00:00]} 59. Qb2+ {[%emt 0:00:02]} Ke7 {[%emt 0:00:04]} 60. Qxd2 {[%emt 0:00:02]} Qc5 {[%emt 0:00:01]} 61. Qd4 {[%emt 0:00:00]} Qxb5 {[%emt 0:00:00]} 62. Ke1 {[%emt 0:00:01]} Ke8 {[%emt 0:00:00]} 63. Qd5 {[%emt 0:00:01]} Qb2 {[%emt 0:00:01]} 64. Kf1 {[%emt 0:00:01]} Kf8 {[%emt 0:00:01]} 65. Qg5 {[%emt 0:00:01]} Qc1+ {[%emt 0:00:01]} 66. Kf2 {[%emt 0:00:01]} Qd2+ {[%emt 0:00:00]} 67. Kg3 {[%emt 0:00:00]} Qe1+ {[%emt 0:00:00]} 68. Kxg4 {[%emt 0:00:01]} Qg1+ {[%emt 0:00:00]} 69. Kf4 {[%emt 0:00:00]} Qf1+ {[%emt 0:00:00]} 70. Ke5 {[%emt 0:00:00]} Qb5+ {[%emt 0:00:00]} 71. Kf4 {[%emt 0:00:01]} Qb6 {[%emt 0:00:00]} 72. Kg4 {[%emt 0:00:00]} Qf6 {[%emt 0:00:01]} 73. Qf5 {[%emt 0:00:00]} Kg7 {[%emt 0:00:01]} 74. Qxf6+ {[%emt 0:00:00]} Kxf6 {[%emt 0:00:00]} 75. Kf4 {[%emt 0:00:00]} Ke6 {[%emt 0:00:00]} 76. e5 {[%emt 0:00:01]} Ke7 {[%emt 0:00:00]} 77. Ke4 {[%emt 0:00:00]} Kf7 {[%emt 0:00:00]} 78. Kd4 {[%emt 0:00:00]} Ke7 {[%emt 0:00:00]} 79. e4 {[%emt 0:00:00]} Ke8 {[%emt 0:00:01]} 80. Kd5 {[%emt 0:00:00]} Kd8 {[%emt 0:00:00]} 81. e6 {[%emt 0:00:00]} Ke8 {[%emt 0:00:00]} 82. Ke5 {[%emt 0:00:00]} Ke7 {[%emt 0:00:00]} 83. Kf5 {[%emt 0:00:01]} Ke8 {[%emt 0:00:00]} 84. Kf6 {[%emt 0:00:00]} Kf8 {[%emt 0:00:00]} 85. e7+ {[%emt 0:00:00]} Ke8 86. e5 {[%emt 0:00:02]} 1-0

[Event "CCT Chessable Masters Play-In 2025"]
[Site "Online"]
[Date "2025.02.17"]
[Round "5.7"]
[White "Chigaev, Maksim"]
[Black "Artemiev, Vladislav"]
[Result "0-1"]
[ECO "C45"]
[WhiteElo "2632"]
[BlackElo "2691"]
[PlyCount "106"]
[EventDate "2025.02.13"]
[EventType "swiss"]
[EventCountry "NET"]
[TimeControl "600"]
[BlackClock "0:00:13"]

1. e4 {[%emt 0:00:01]} e5 {[%emt 0:00:03]} 2. Nf3 {[%emt 0:00:01]} Nc6 {[%emt 0:00:02]} 3. d4 {[%emt 0:00:01]} exd4 {[%emt 0:00:01]} 4. Nxd4 {[%emt 0:00:00]} Nf6 {[%emt 0:00:06]} 5. Nxc6 {[%emt 0:00:06]} bxc6 {[%emt 0:00:01]} 6. Qe2 {[%emt 0:00:13]} d6 {[%emt 0:00:56]} 7. Nc3 {[%emt 0:00:22]} Be7 {[%emt 0:00:01]} 8. g3 {[%emt 0:00:12]} O-O {[%emt 0:00:09]} 9. Bg2 {[%emt 0:00:01]} a5 {[%emt 0:00:04]} 10. Bf4 {[%emt 0:00:11]} Ba6 {[%emt 0:00:09]} 11. Qd2 {[%emt 0:00:04]} Nd7 {[%emt 0:00:24]} 12. O-O-O {[%emt 0:00:43]} Bf6 {[%emt 0:01:48]} 13. h4 {[%emt 0:00:16]} h6 {[%emt 0:01:11]} 14. Bf1 {[%emt 0:02:11]} Qb8 {[%emt 0:00:26]} 15. g4 {[%emt 0:00:19]} Qb4 {[%emt 0:00:18]} 16. a3 {[%emt 0:00:04]} Bxc3 {[%emt 0:00:15]} 17. axb4 {[%emt 0:00:18]} Bxd2+ {[%emt 0:00:01]} 18. Bxd2 {[%emt 0:00:02]} axb4 {[%emt 0:00:21]} 19. Bxb4 {[%emt 0:00:14]} Ne5 {[%emt 0:00:13]} 20. Bc3 {[%emt 0:01:16]} Bxf1 {[%emt 0:00:36]} 21. Rhxf1 {[%emt 0:00:41]} Nxg4 {[%emt 0:00:46]} 22. Rg1 {[%emt 0:00:10]} f5 {[%emt 0:00:39]} 23. exf5 {[%emt 0:00:26]} Ra1+ {[%emt 0:00:01]} 24. Kd2 {[%emt 0:00:00]} Rxd1+ {[%emt 0:00:00]} 25. Kxd1 {[%emt 0:00:01]} h5 {[%emt 0:00:00]} 26. Bxg7 {[%emt 0:00:42]} Rxf5 {[%emt 0:00:03]} 27. Bd4 {[%emt 0:00:00]} Rd5 {[%emt 0:00:05]} 28. c3 {[%emt 0:00:01]} c5 {[%emt 0:00:02]} 29. f3 {[%emt 0:00:12]} cxd4 {[%emt 0:00:01]} 30. c4 {[%emt 0:00:29]} Ra5 {[%emt 0:00:04]} 31. Kc2 {[%emt 0:00:05]} Kf7 {[%emt 0:00:26]} 32. fxg4 {[%emt 0:00:01]} hxg4 {[%emt 0:00:01]} 33. Rxg4 {[%emt 0:00:01]} c5 {[%emt 0:00:00]} 34. h5 {[%emt 0:00:06]} Ra1 {[%emt 0:00:02]} 35. Rh4 {[%emt 0:00:01]} Kg7 {[%emt 0:00:01]} 36. Rg4+ {[%emt 0:00:01]} Kf6 {[%emt 0:00:04]} 37. Rh4 {[%emt 0:00:03]} Kg5 {[%emt 0:00:01]} 38. Rh2 {[%emt 0:00:02]} Ra7 {[%emt 0:00:02]} 39. Re2 {[%emt 0:00:06]} Kxh5 {[%emt 0:00:02]} 40. Re6 {[%emt 0:00:01]} Ra6 {[%emt 0:00:01]} 41. Kd3 {[%emt 0:00:06]} Rb6 {[%emt 0:00:02]} 42. b4 {[%emt 0:00:01]} Rxb4 {[%emt 0:00:13]} 43. Rxd6 {[%emt 0:00:01]} Kg4 {[%emt 0:00:00]} 44. Rd5 {[%emt 0:00:02]} Rb3+ {[%emt 0:00:01]} 45. Kd2 {[%emt 0:00:00]} Kf4 {[%emt 0:00:00]} 46. Rxc5 {[%emt 0:00:01]} Ke4 {[%emt 0:00:00]} 47. Rc8 {[%emt 0:00:00]} Rb2+ {[%emt 0:00:01]} 48. Kc1 {[%emt 0:00:01]} Rh2 {[%emt 0:00:00]} 49. Ra8 {[%emt 0:00:01]} Ke3 {[%emt 0:00:01]} 50. Re8+ {[%emt 0:00:01]} Kd3 {[%emt 0:00:01]} 51. c5 {[%emt 0:00:00]} Kc3 {[%emt 0:00:00]} 52. Kd1 {[%emt 0:00:01]} d3 {[%emt 0:00:01]} 53. Ke1 d2+ {[%emt 0:00:01]} 0-1

[Event "CCT Chessable Masters Play-In 2025"]
[Site "Online"]
[Date "2025.02.17"]
[Round "5.8"]
[White "Yu, Yangyi"]
[Black "Antipov, Mikhail Al."]
[Result "1-0"]
[ECO "E32"]
[WhiteElo "2715"]
[BlackElo "2571"]
[PlyCount "49"]
[EventDate "2025.02.13"]
[EventType "swiss"]
[EventCountry "NET"]
[TimeControl "600"]
[WhiteClock "0:04:40"]
[BlackClock "0:03:04"]

1. d4 {[%emt 0:00:03]} Nf6 {[%emt 0:00:01]} 2. c4 {[%emt 0:00:01]} e6 {[%emt 0:00:01]} 3. Nc3 {[%emt 0:00:02]} Bb4 {[%emt 0:00:01]} 4. Nf3 {[%emt 0:00:01]} O-O {[%emt 0:00:05]} 5. Qc2 {[%emt 0:00:03]} d5 {[%emt 0:00:02]} 6. Bg5 {[%emt 0:00:05]} Nbd7 {[%emt 0:00:12]} 7. e3 {[%emt 0:00:08]} b6 {[%emt 0:00:24]} 8. cxd5 {[%emt 0:00:17]} exd5 {[%emt 0:00:02]} 9. Bb5 {[%emt 0:00:07]} h6 {[%emt 0:00:12]} 10. Bh4 {[%emt 0:00:02]} c5 {[%emt 0:00:16]} 11. O-O {[%emt 0:00:11]} g5 {[%emt 0:00:34]} 12. Bg3 {[%emt 0:00:03]} Bb7 {[%emt 0:00:09]} 13. dxc5 {[%emt 0:00:13]} bxc5 {[%emt 0:00:07]} 14. Rfd1 {[%emt 0:00:03]} Bxc3 {[%emt 0:00:22]} 15. bxc3 {[%emt 0:00:05]} a6 {[%emt 0:00:00]} 16. Bxd7 {[%emt 0:00:30]} Qxd7 {[%emt 0:00:03]} 17. Rab1 {[%emt 0:00:01]} d4 {[%emt 0:01:30]} 18. Ne5 {[%emt 0:01:29]} Qc8 {[%emt 0:00:18]} 19. Rb6 {[%emt 0:00:16]} Be4 {[%emt 0:00:09]} 20. Qe2 {[%emt 0:00:19]} Qd8 {[%emt 0:00:55]} 21. Nc4 {[%emt 0:00:43]} d3 {[%emt 0:00:18]} 22. Qe1 {[%emt 0:00:00]} g4 {[%emt 0:00:52]} 23. Rd6 {[%emt 0:00:27]} Qe7 {[%emt 0:00:14]} 24. Bh4 {[%emt 0:00:00]} Bxg2 {[%emt 0:00:09]} 25. Rxf6 {[%emt 0:00:11]} 1-0

[Event "CCT Chessable Masters Play-In 2025"]
[Site "Online"]
[Date "2025.02.17"]
[Round "5.9"]
[White "Nguyen, Ngoc Truong Son"]
[Black "Niemann, Hans Moke"]
[Result "1-0"]
[ECO "D02"]
[WhiteElo "2632"]
[BlackElo "2734"]
[PlyCount "57"]
[EventDate "2025.02.13"]
[EventType "swiss"]
[EventCountry "NET"]
[TimeControl "600"]
[WhiteClock "0:02:34"]
[BlackClock "0:07:03"]

1. d4 {[%emt 0:02:37]} Nf6 {[%emt 0:00:10]} 2. Nf3 {[%emt 0:00:02]} d5 {[%emt 0:00:04]} 3. Bf4 {[%emt 0:00:05]} e6 {[%emt 0:00:01]} 4. e3 {[%emt 0:00:01]} Bd6 {[%emt 0:00:00]} 5. Bg3 {[%emt 0:00:01]} O-O {[%emt 0:00:03]} 6. c4 {[%emt 0:00:02]} dxc4 {[%emt 0:00:17]} 7. Bxc4 {[%emt 0:00:05]} b6 {[%emt 0:00:03]} 8. Nc3 {[%emt 0:00:04]} Bb7 {[%emt 0:00:01]} 9. Qe2 {[%emt 0:00:12]} Nbd7 {[%emt 0:00:02]} 10. O-O {[%emt 0:00:18]} Bxg3 {[%emt 0:00:03]} 11. hxg3 {[%emt 0:00:00]} c5 {[%emt 0:00:00]} 12. Rfd1 {[%emt 0:00:08]} cxd4 {[%emt 0:00:06]} 13. Rxd4 {[%emt 0:00:06]} Qe7 {[%emt 0:00:06]} 14. Rad1 {[%emt 0:00:05]} a6 {[%emt 0:00:02]} 15. g4 {[%emt 0:00:28]} b5 {[%emt 0:00:08]} 16. Bb3 {[%emt 0:00:15]} Nc5 {[%emt 0:00:07]} 17. g5 {[%emt 0:00:06]} Nfe4 {[%emt 0:00:37]} 18. Nxe4 {[%emt 0:00:10]} Bxe4 {[%emt 0:00:00]} 19. Bc2 {[%emt 0:00:03]} Bxf3 {[%emt 0:00:12]} 20. Qxf3 {[%emt 0:00:03]} Qxg5 {[%emt 0:00:02]} 21. Rg4 {[%emt 0:00:45]} Qe5 {[%emt 0:00:05]} 22. b4 {[%emt 0:01:11]} Na4 {[%emt 0:00:02]} 23. Bxa4 {[%emt 0:00:11]} bxa4 {[%emt 0:00:01]} 24. Qc6 {[%emt 0:00:08]} a5 {[%emt 0:00:20]} 25. Rgd4 {[%emt 0:00:03]} g6 {[%emt 0:00:11]} 26. Qxa4 {[%emt 0:00:10]} axb4 {[%emt 0:00:03]} 27. Qxb4 {[%emt 0:00:00]} Rxa2 {[%emt 0:00:10]} 28. Rd8 {[%emt 0:00:05]} Ra8 {[%emt 0:00:01]} 29. Qxf8# {[%emt 0:00:02]} 1-0

[Event "CCT Chessable Masters Play-In 2025"]
[Site "Online"]
[Date "2025.02.17"]
[Round "5.10"]
[White "Bortnyk, Olexandr"]
[Black "Fressinet, Laurent"]
[Result "1/2-1/2"]
[ECO "D00"]
[WhiteElo "2601"]
[BlackElo "2588"]
[PlyCount "127"]
[EventDate "2025.02.13"]
[EventType "swiss"]
[EventCountry "NET"]
[TimeControl "600"]
[WhiteClock "0:00:12"]
[BlackClock "0:00:38"]

1. d4 {[%emt 0:00:05]} Nf6 {[%emt 0:00:02]} 2. Nc3 {[%emt 0:00:02]} d5 {[%emt 0:00:02]} 3. Bf4 {[%emt 0:00:00]} e6 {[%emt 0:00:05]} 4. Nb5 {[%emt 0:00:01]} Na6 {[%emt 0:00:02]} 5. e3 {[%emt 0:00:01]} Be7 {[%emt 0:00:01]} 6. Nf3 {[%emt 0:00:01]} O-O {[%emt 0:00:01]} 7. Ne5 {[%emt 0:00:00]} Nd7 {[%emt 0:00:28]} 8. a3 {[%emt 0:00:18]} Nxe5 {[%emt 0:00:12]} 9. Bxe5 {[%emt 0:00:00]} c6 {[%emt 0:00:05]} 10. Nc3 {[%emt 0:00:04]} c5 {[%emt 0:00:01]} 11. Bxa6 {[%emt 0:00:18]} bxa6 {[%emt 0:00:00]} 12. O-O {[%emt 0:00:01]} Bd7 {[%emt 0:00:14]} 13. Re1 {[%emt 0:00:27]} f6 {[%emt 0:00:24]} 14. Bg3 {[%emt 0:00:03]} Qb6 {[%emt 0:00:05]} 15. Rb1 {[%emt 0:00:07]} Rac8 {[%emt 0:00:07]} 16. Ne2 {[%emt 0:00:11]} Rfe8 {[%emt 0:00:14]} 17. h4 {[%emt 0:00:03]} Bf8 {[%emt 0:00:36]} 18. c3 {[%emt 0:00:44]} Red8 {[%emt 0:00:23]} 19. Nf4 {[%emt 0:00:17]} Be8 {[%emt 0:00:04]} 20. h5 {[%emt 0:00:31]} Bf7 {[%emt 0:00:03]} 21. b4 {[%emt 0:00:03]} cxd4 {[%emt 0:00:08]} 22. cxd4 {[%emt 0:00:00]} Rc3 {[%emt 0:00:17]} 23. Ra1 {[%emt 0:01:04]} Rdc8 {[%emt 0:00:28]} 24. Qg4 {[%emt 0:00:08]} Qc6 {[%emt 0:00:27]} 25. Bh4 {[%emt 0:00:05]} e5 {[%emt 0:00:23]} 26. Ne2 {[%emt 0:00:39]} Rc2 {[%emt 0:00:10]} 27. Bg3 {[%emt 0:00:35]} Qe8 {[%emt 0:00:11]} 28. Qh4 {[%emt 0:00:54]} Bxh5 {[%emt 0:00:10]} 29. Nc1 {[%emt 0:00:09]} g5 {[%emt 0:00:22]} 30. Qh2 {[%emt 0:00:16]} exd4 {[%emt 0:00:02]} 31. Nd3 {[%emt 0:00:03]} Re2 {[%emt 0:00:52]} 32. exd4 {[%emt 0:00:10]} Rc3 {[%emt 0:00:05]} 33. Rxe2 {[%emt 0:00:06]} Qxe2 {[%emt 0:00:00]} 34. Nc5 {[%emt 0:00:14]} Bg4 {[%emt 0:00:49]} 35. f3 {[%emt 0:00:12]} Bf5 {[%emt 0:00:19]} 36. Kh1 {[%emt 0:00:45]} Rc2 {[%emt 0:00:03]} 37. Re1 {[%emt 0:00:06]} Qd2 {[%emt 0:00:03]} 38. Qg1 {[%emt 0:00:19]} h5 {[%emt 0:00:02]} 39. Nb3 {[%emt 0:00:08]} Qc3 {[%emt 0:00:07]} 40. Qe3 {[%emt 0:00:02]} Qxe3 {[%emt 0:00:02]} 41. Rxe3 {[%emt 0:00:00]} Kf7 {[%emt 0:00:04]} 42. Bb8 {[%emt 0:00:06]} Ra2 {[%emt 0:00:04]} 43. Nc5 {[%emt 0:00:01]} h4 {[%emt 0:00:08]} 44. Kg1 {[%emt 0:00:02]} h3 {[%emt 0:00:04]} 45. gxh3 {[%emt 0:00:02]} Bxh3 {[%emt 0:00:00]} 46. Nxa6 {[%emt 0:00:06]} f5 {[%emt 0:00:04]} 47. Be5 {[%emt 0:00:04]} f4 {[%emt 0:00:03]} 48. Rc3 {[%emt 0:00:01]} Be7 {[%emt 0:00:08]} 49. Nc7 {[%emt 0:00:01]} Be6 {[%emt 0:00:13]} 50. Nxe6 {[%emt 0:00:01]} Kxe6 {[%emt 0:00:01]} 51. Rc6+ {[%emt 0:00:00]} Kf5 {[%emt 0:00:01]} 52. Rc7 {[%emt 0:00:01]} Ke6 {[%emt 0:00:01]} 53. Rc6+ {[%emt 0:00:00]} Kf5 {[%emt 0:00:03]} 54. Rc7 {[%emt 0:00:00]} Ke6 {[%emt 0:00:07]} 55. Rxa7 {[%emt 0:00:01]} g4 {[%emt 0:00:04]} 56. fxg4 {[%emt 0:00:02]} f3 {[%emt 0:00:00]} 57. Ra6+ {[%emt 0:00:01]} Kf7 {[%emt 0:00:02]} 58. Ra7 {[%emt 0:00:05]} Ke8 {[%emt 0:00:01]} 59. Ra8+ {[%emt 0:00:01]} Kd7 {[%emt 0:00:01]} 60. Ra7+ {[%emt 0:00:00]} Ke6 {[%emt 0:00:01]} 61. Ra6+ {[%emt 0:00:00]} Kf7 {[%emt 0:00:00]} 62. Ra7 {[%emt 0:00:00]} Kf8 {[%emt 0:00:02]} 63. Ra8+ {[%emt 0:00:01]} Kf7 {[%emt 0:00:01]} 64. Ra7 {[%emt 0:00:00]} 1/2-1/2

[Event "CCT Chessable Masters Play-In 2025"]
[Site "Online"]
[Date "2025.02.17"]
[Round "5.11"]
[White "Xu, Xiangyu"]
[Black "Sjugirov, Sanan"]
[Result "0-1"]
[ECO "D36"]
[WhiteElo "2623"]
[BlackElo "2643"]
[PlyCount "94"]
[EventDate "2025.02.13"]
[EventType "swiss"]
[EventCountry "NET"]
[TimeControl "600"]
[WhiteClock "0:00:25"]
[BlackClock "0:01:49"]

1. d4 {[%emt 0:00:01]} Nf6 {[%emt 0:00:02]} 2. c4 {[%emt 0:00:00]} e6 {[%emt 0:00:00]} 3. Nc3 {[%emt 0:00:01]} d5 {[%emt 0:00:01]} 4. cxd5 {[%emt 0:00:03]} exd5 {[%emt 0:00:00]} 5. Bg5 {[%emt 0:00:01]} c6 {[%emt 0:00:01]} 6. e3 {[%emt 0:00:00]} Be7 {[%emt 0:00:00]} 7. Bd3 {[%emt 0:00:02]} Nbd7 {[%emt 0:00:01]} 8. h3 {[%emt 0:00:01]} O-O {[%emt 0:00:04]} 9. Qc2 {[%emt 0:00:07]} Re8 {[%emt 0:00:06]} 10. Bf4 {[%emt 0:00:03]} Nf8 {[%emt 0:00:11]} 11. Nf3 {[%emt 0:00:03]} Ng6 {[%emt 0:00:05]} 12. Bh2 {[%emt 0:00:04]} Bd6 {[%emt 0:00:03]} 13. Bxd6 {[%emt 0:00:02]} Qxd6 {[%emt 0:00:01]} 14. O-O {[%emt 0:00:08]} Qe7 {[%emt 0:00:12]} 15. Nd2 {[%emt 0:00:32]} Nh4 {[%emt 0:00:29]} 16. Rae1 {[%emt 0:00:20]} Qd8 {[%emt 0:00:07]} 17. b4 {[%emt 0:00:45]} a6 {[%emt 0:00:09]} 18. a4 {[%emt 0:01:44]} g6 {[%emt 0:00:05]} 19. a5 {[%emt 0:00:19]} Bf5 {[%emt 0:00:13]} 20. Bxf5 {[%emt 0:00:18]} Nxf5 {[%emt 0:00:01]} 21. Nb3 {[%emt 0:00:00]} Re7 {[%emt 0:00:34]} 22. Re2 {[%emt 0:00:03]} Qc7 {[%emt 0:00:04]} 23. Rfe1 {[%emt 0:00:03]} Rae8 {[%emt 0:00:02]} 24. Nc5 {[%emt 0:00:02]} Kg7 {[%emt 0:00:33]} 25. Qd3 {[%emt 0:00:02]} h5 {[%emt 0:00:07]} 26. f3 {[%emt 0:01:06]} Qd6 {[%emt 0:00:27]} 27. Nd1 {[%emt 0:00:39]} h4 {[%emt 0:00:12]} 28. Nf2 {[%emt 0:00:06]} Ng3 {[%emt 0:01:18]} 29. Rc2 {[%emt 0:00:05]} Qf4 {[%emt 0:00:20]} 30. Rc3 {[%emt 0:00:40]} Qg5 {[%emt 0:00:32]} 31. Qd2 {[%emt 0:00:28]} Nf5 {[%emt 0:00:25]} 32. Nd1 {[%emt 0:00:21]} Nh5 {[%emt 0:00:01]} 33. Kh1 {[%emt 0:00:30]} Nf4 {[%emt 0:00:30]} 34. Nb3 {[%emt 0:00:05]} Qg3 {[%emt 0:00:14]} 35. Qf2 {[%emt 0:00:07]} Qxf2 {[%emt 0:00:09]} 36. Nxf2 {[%emt 0:00:04]} Nxe3 {[%emt 0:00:01]} 37. Nd3 {[%emt 0:00:12]} Nexg2 {[%emt 0:00:12]} 38. Rxe7 {[%emt 0:00:02]} Rxe7 {[%emt 0:00:00]} 39. Nbc5 {[%emt 0:00:00]} Nxd3 {[%emt 0:00:11]} 40. Nxd3 {[%emt 0:00:00]} Ne3 {[%emt 0:00:06]} 41. Nc5 {[%emt 0:00:01]} Nf5 {[%emt 0:00:06]} 42. Rd3 {[%emt 0:00:01]} Ng3+ {[%emt 0:00:05]} 43. Kg1 {[%emt 0:00:03]} Ne2+ {[%emt 0:00:00]} 44. Kh2 {[%emt 0:00:02]} Nf4 {[%emt 0:00:00]} 45. Rd2 {[%emt 0:00:02]} Kf8 {[%emt 0:00:06]} 46. Rd1 {[%emt 0:00:04]} Ke8 {[%emt 0:00:01]} 47. Rg1 {[%emt 0:00:13]} f6 {[%emt 0:00:04]} 0-1